bitfinex-derivatives/quotes_SOLF0:USTF0_20260121
["timestamp","ask_amount","ask_price","bid_price","bid_amount"]
[1768953600547,8.15233257,125.83,125.67,24.81226093]
[1768953600848,8.15233257,125.83,125.7,19.84912653]
[1768953603253,8.15233257,125.83,125.71,19.84912653]
[1768953604252,8.15233257,125.83,125.71,19.04912653]
[1768953604444,8.15233257,125.83,125.74,7.1655]
[1768953604653,8.15233257,125.83,125.71,111.4944]
[1768953605042,8.15233257,125.83,125.76,7.1646]
[1768953606048,8.15233257,125.83,125.77,7.164]
[1768953606247,7.81473993,125.86,125.75,111.456]
[1768953606944,7.81473993,125.86,125.79,7.1629]
[1768953607547,7.81473993,125.86,125.8,7.1621]
[1768953607849,7.81473993,125.86,125.78,111.428]
[1768953608656,7.39648357,125.93,125.81,4.41606281]
[1768953608853,118.69558357,125.94,125.81,4.41606281]
[1768953609257,7.1563,125.91,125.81,11.57746281]
[1768953609453,111.3097,125.92,125.81,7.1614]
[1768953609754,118.70618357,125.92,125.81,7.1614]
[1768953609950,111.3239,125.91,125.8,7.1622]
[1768953610151,111.3282,125.9,125.77,115.85914369]
[1768953610775,7.81473993,125.89,125.77,115.85914369]
[1768953611253,7.81473993,125.86,125.77,11.58694369]
[1768953612756,7.81473993,125.85,125.75,7.165]
[1768953613452,7.81473993,125.85,125.76,8.38111682]
[1768953614956,7.81473993,125.85,125.77,7.1639]
[1768953615262,7.81473993,125.85,125.76,8.38111682]
[1768953616154,7.98591178,125.84,125.76,7.1644]
[1768953616359,7.98591178,125.84,125.73,8.11833153]
[1768953617846,7.98591178,125.82,125.75,8.11833153]
[1768953618043,7.98591178,125.86,125.76,8.11833153]
[1768953618859,7.98591178,125.84,125.77,7.1639]
[1768953622364,7.98591178,125.86,125.79,8.11833153]
[1768953623252,7.98591178,125.85,125.77,15.28203153]
[1768953623452,7.98591178,125.85,125.77,8.11833153]
[1768953624159,7.98591178,125.85,125.79,15.28113153]
[1768953626159,7.98591178,125.87,125.81,7.1618]
[1768953626761,7.98591178,125.87,125.81,15.28013153]
[1768953628764,7.98591178,125.87,125.82,7.1612]
[1768953629158,7.98591178,125.87,125.82,15.27953153]
[1768953629368,7.98591178,125.91,125.83,7.1604]
[1768953629564,118.69618357,125.94,125.84,8.11833153]
[1768953629565,7.98591178,125.94,125.84,8.11833153]
[1768953629978,7.98591178,125.92,125.85,7.1594]
[1768953630174,7.98591178,125.92,125.86,8.11833153]
[1768953630675,7.98591178,125.92,125.87,7.1582]
[1768953630867,7.39648357,126.0,125.88,8.11833153]
[1768953631075,300.13648357,126.01,125.9,8.11833153]
[1768953631366,292.74,126.01,125.9,8.11833153]
[1768953631769,7.1518,125.99,125.91,7.1559]
[1768953632569,111.2332,126.01,125.9,8.11833153]
[1768953632570,7.1505,126.01,125.92,7.1554]
[1768953632769,7.98591178,126.04,125.93,119.41643153]
[1768953633071,7.98591178,126.04,125.95,8.11833153]
[1768953633270,7.98591178,126.04,125.96,7.1529]
[1768953633864,7.98591178,126.03,125.94,7.1542]
[1768953634660,7.98591178,126.03,125.94,15.27253153]
[1768953634874,7.98591178,126.02,125.94,15.27253153]
[1768953636969,7.98591178,126.02,125.95,8.11833153]
[1768953637164,7.98591178,126.05,125.97,8.11833153]
[1768953637372,7.98591178,126.05,125.98,119.37163153]
[1768953637671,7.98591178,126.05,125.99,8.11833153]
[1768953637870,111.1496,126.11,125.99,8.11833153]
[1768953638068,7.98591178,126.1,125.99,8.11833153]
[1768953638871,7.98591178,126.08,125.99,8.11833153]
[1768953639072,7.98591178,126.08,125.99,119.35893153]
[1768953639461,7.98591178,126.08,126.01,7.1501]
[1768953639774,7.98591178,126.08,125.99,8.11833153]
[1768953640166,7.98591178,126.07,125.97,8.11833153]
[1768953640765,7.98591178,126.06,125.98,111.2548]
[1768953640966,7.98591178,126.06,125.98,119.37313153]
[1768953641168,7.98591178,126.06,125.98,8.11833153]
[1768953642677,7.98591178,126.06,125.99,7.1513]
[1768953642877,7.98591178,126.06,125.99,8.11833153]
[1768953643172,7.98591178,126.06,125.98,111.2527]
[1768953643377,7.98591178,126.06,125.97,119.3497464]
[1768953643674,8.00887437,126.09,126.01,8.0910464]
[1768953643877,406.88043179,126.13,126.03,119.3025464]
[1768953643878,8.00887437,126.12,126.03,119.3025464]
[1768953644177,8.00887437,126.12,126.03,15.2400464]
[1768953645284,8.00887437,126.12,126.04,8.68627599]
[1768953646779,8.00887437,126.12,126.04,15.83487599]
[1768953647189,8.00887437,126.12,126.01,8.68627599]
[1768953647476,120.07963179,126.13,126.02,7.1495]
[1768953647477,8.45400328,126.09,126.02,7.1495]
[1768953648578,8.45400328,126.09,126.03,8.68627599]
[1768953649073,8.45400328,126.11,126.03,8.68627599]
[1768953649682,8.45400328,126.11,126.05,7.148]
[1768953650279,8.45400328,126.11,126.05,3.23096529]
[1768953660182,17.40653507,126.13,126.06,8.68627599]
[1768953660693,8.95253179,126.13,126.09,7.1459]
[1768953661186,17.40653507,126.13,126.06,119.86967599]
[1768953661384,17.40653507,126.13,126.08,7.1464]
[1768953661591,8.45400328,126.12,126.04,119.88877599]
[1768953662091,8.45400328,126.12,126.02,119.90157599]
[1768953662882,8.45400328,126.1,126.04,7.1483]
[1768953663084,8.45400328,126.1,126.0,119.91667599]
[1768953663488,8.45400328,126.09,125.98,8.68627599]
[1768953663688,8.45400328,126.08,125.96,119.95307599]
[1768953663891,8.45400328,126.08,125.97,119.95107599]
[1768953664885,8.45400328,126.06,125.99,7.1512]
[1768953665594,15.60180328,126.06,125.97,15.83887599]
[1768953665792,8.45400328,126.05,125.97,15.83887599]
[1768953667494,8.45400328,126.04,125.95,7.1536]
[1768953668288,8.45400328,126.07,125.96,111.2712]
[1768953668603,8.45400328,126.12,126.02,8.68627599]
[1768953668802,15.59850328,126.12,126.04,7.1486]
[1768953669104,8.45400328,126.12,126.04,15.83487599]
[1768953669892,8.45400328,126.12,126.04,8.68627599]
[1768953670094,8.45400328,126.12,126.02,15.83587599]
[1768953670596,8.45400328,126.1,126.0,15.83717599]
[1768953670985,8.45400328,126.1,126.01,8.68627599]
[1768953671691,24.55043507,126.13,126.04,8.68627599]
[1768953672601,15.59840328,126.12,126.04,15.83487599]
[1768953673702,8.45400328,126.12,126.05,8.68627599]
[1768953674800,8.45400328,126.12,126.05,15.83427599]
[1768953676404,8.95253179,126.13,126.07,8.85149924]
[1768953677504,17.50280983,126.13,126.05,8.85149924]
[1768953677905,17.50280983,126.13,126.05,15.99939924]
[1768953678401,17.50280983,126.13,126.06,8.85149924]
[1768953682815,17.50280983,126.13,126.06,15.99899924]
[1768953683907,8.95253179,126.13,126.09,8.85149924]
[1768953684515,15.69087804,126.19,126.11,8.85149924]
[1768953685414,8.55027804,126.18,126.11,8.85149924]
[1768953686813,8.55027804,126.17,126.1,7.1452]
[1768953687719,8.55027804,126.17,126.1,15.99669924]
[1768953690322,8.55027804,126.17,126.11,8.85149924]
[1768953694230,15.69177804,126.17,126.11,8.85149924]
[1768953694429,8.55027804,126.16,126.09,8.85149924]
[1768953695827,8.55027804,126.16,126.09,15.99739924]
[1768953697127,15.69227804,126.16,126.09,15.99739924]
[1768953697332,15.69227804,126.16,126.09,8.85149924]
[1768953698633,15.69147804,126.18,126.1,8.85149924]
[1768953699629,15.69147804,126.18,126.11,8.85149924]
[1768953700031,8.55027804,126.17,126.11,8.85149924]
[1768953701133,8.55027804,126.16,126.07,120.02549924]
[1768953701329,8.55027804,126.16,126.08,8.85149924]
[1768953701732,8.55027804,126.15,126.07,7.1466]
[1768953702928,8.55027804,126.14,126.07,7.1466]
[1768953703433,8.55027804,126.13,126.07,7.1466]
[1768953703835,8.55027804,126.17,126.07,15.99809924]
[1768953704135,15.69287804,126.15,126.07,15.99809924]
[1768953704331,8.55027804,126.14,126.07,15.99809924]
[1768953704636,8.55027804,126.14,126.08,8.85149924]
[1768953705035,7.1426,126.15,126.08,7.1464]
[1768953705229,9.5017769,126.17,126.09,8.75320448]
[1768953706333,9.5017769,126.16,126.09,8.75320448]
[1768953707036,16.6438769,126.16,126.09,8.75320448]
[1768953707938,16.6443769,126.15,126.09,8.75320448]
[1768953708451,16.6436769,126.17,126.09,8.75320448]
[1768953709939,16.6436769,126.17,126.1,8.75320448]
[1768953712247,16.6424769,126.19,126.11,8.75320448]
[1768953712739,9.5017769,126.19,126.12,8.75320448]
[1768953713142,9.5017769,126.22,126.14,8.75320448]
[1768953713539,16.6396769,126.24,126.16,15.89500448]
[1768953716554,16.6396769,126.24,126.17,8.75320448]
[1768953717752,9.5017769,126.24,126.17,15.89430448]
[1768953718051,9.5017769,126.24,126.17,8.75320448]
[1768953719755,9.5017769,126.24,126.17,15.89450448]
[1768953720452,9.5017769,126.26,126.18,8.75320448]
[1768953721352,9.5017769,126.26,126.19,8.75320448]
[1768953721656,9.5017769,126.25,126.18,7.1404]
[1768953721854,9.5017769,126.25,126.18,15.89360448]
[1768953723150,7.1364,126.26,126.19,8.75320448]
[1768953723352,16.6381769,126.26,126.19,8.75320448]
[1768953723552,16.6387769,126.25,126.16,15.89470448]
[1768953723742,9.5017769,126.24,126.16,15.89470448]
[1768953724257,9.5017769,126.23,126.16,15.89470448]
[1768953724463,9.5017769,126.23,126.16,8.75320448]
[1768953725054,7.1389,126.22,126.16,8.75320448]
[1768953725257,9.5017769,126.23,126.16,8.75320448]
[1768953725661,9.5017769,126.23,126.14,15.89580448]
[1768953726764,9.5017769,126.2,126.12,8.75320448]
[1768953727659,9.5017769,126.19,126.12,8.75320448]
[1768953728861,9.5017769,126.19,126.12,15.89730448]
[1768953730469,16.6421769,126.19,126.12,8.75320448]
[1768953730660,9.5017769,126.18,126.12,8.75320448]
[1768953732866,11.91812764,126.18,126.12,8.75320448]
[1768953733660,11.91812764,126.15,126.07,8.75320448]
[1768953734361,11.91812764,126.15,126.09,15.89900448]
[1768953734965,9.5017769,126.15,126.09,15.89900448]
[1768953735159,11.91812764,126.15,126.09,15.89900448]
[1768953736070,11.91812764,126.15,126.09,8.75320448]
[1768953736669,2.41635074,126.13,126.08,7.1463]
[1768953739080,9.5017769,126.15,126.09,9.2162718]
[1768953739273,11.91812764,126.15,126.09,9.2162718]
[1768953741273,9.13445776,126.18,126.1,9.2162718]
[1768953741464,2.41635074,126.17,126.1,9.2162718]
[1768953741764,2.41635074,126.19,126.12,9.2162718]
[1768953741963,9.13445776,126.2,126.13,9.2162718]
[1768953742165,2.41635074,126.21,126.13,9.2162718]
[1768953742366,11.5508085,126.21,126.13,9.2162718]
[1768953743278,9.13445776,126.2,126.13,9.2162718]
[1768953743780,9.13445776,126.2,126.13,16.3598718]
[1768953744396,9.13445776,126.2,126.12,2.41635074]
[1768953744397,2.41635074,126.22,126.15,9.2162718]
[1768953744680,11.5508085,126.23,126.15,9.2162718]
[1768953744866,9.13445776,126.23,126.15,9.2162718]
[1768953746480,9.13445776,126.21,126.15,9.2162718]
[1768953746675,9.13445776,126.21,126.14,7.1426]
[1768953746875,9.13445776,126.21,126.14,16.3588718]
[1768953747886,9.13445776,126.23,126.15,16.3587718]
[1768953748780,16.27255776,126.23,126.15,16.3587718]
[1768953748982,9.13445776,126.22,126.15,16.3587718]
[1768953750476,9.13445776,126.21,126.15,9.2162718]
[1768953750678,9.13445776,126.21,126.13,16.3594718]
[1768953750879,9.13445776,126.21,126.14,9.2162718]
[1768953751782,16.27375776,126.21,126.14,9.2162718]
[1768953753480,9.13445776,126.21,126.15,16.3587718]
[1768953754101,9.13445776,126.21,126.15,9.2162718]
[1768953754887,16.27375776,126.21,126.15,9.2162718]
[1768953757591,117.50153006,126.24,126.15,9.2162718]
[1768953757592,16.27295776,126.23,126.15,9.2162718]
[1768953759189,9.13445776,126.23,126.15,9.2162718]
[1768953759890,9.13445776,126.25,126.17,9.2162718]
[1768953760588,16.27195776,126.24,126.17,9.2162718]
[1768953761990,7.1375,126.24,126.17,9.2162718]
[1768953763893,7.1375,126.24,126.17,16.3575718]
[1768953764191,16.27195776,126.24,126.17,16.3575718]
[1768953767096,18.68577606,126.24,126.17,16.3575718]
[1768953769297,18.68577606,126.24,126.18,8.69992569]
[1768953772599,15.61590255,126.23,126.17,7.1413]
[1768953772896,10.89162085,126.22,126.16,8.69992569]
[1768953773298,8.47780255,126.21,126.14,8.69992569]
[1768953774196,15.61700255,126.21,126.14,8.69992569]
[1768953774392,10.89162085,126.2,126.14,8.69992569]
[1768953776200,18.03132085,126.2,126.14,8.69992569]
[1768953776701,10.89162085,126.2,126.14,8.69992569]
[1768953777299,7.1403,126.19,126.14,8.69992569]
[1768953777491,8.47780255,126.19,126.14,8.69992569]
[1768953779706,15.61820255,126.19,126.12,8.69992569]
[1768953780002,2.4138183,126.18,126.12,8.69992569]
[1768953780903,2.4138183,126.18,126.13,8.69992569]
[1768953781109,10.89162085,126.2,126.13,8.69992569]
[1768953783006,18.03142085,126.2,126.13,8.69992569]
[1768953783707,8.47780255,126.2,126.14,8.69992569]
[1768953784007,10.89162085,126.2,126.14,8.69992569]
[1768953784503,18.03062085,126.22,126.15,8.69992569]
[1768953784704,10.89162085,126.22,126.15,8.69992569]
[1768953784903,18.02952085,126.24,126.16,8.69992569]
[1768953785100,18.02952085,126.24,126.17,8.69992569]
[1768953785501,10.89162085,126.24,126.17,8.69992569]
[1768953785808,10.89162085,126.24,126.18,8.69992569]
[1768953786010,8.47780255,126.24,126.18,8.69992569]
[1768953786405,7.138,126.23,126.16,8.69992569]
[1768953786709,10.89162085,126.24,126.16,8.69992569]
[1768953786904,8.47780255,126.24,126.18,8.69992569]
[1768953787110,2.4138183,126.25,126.18,8.69992569]
[1768953787307,10.89162085,126.26,126.18,8.69992569]
[1768953788121,10.89162085,126.26,126.19,15.84002569]
[1768953789016,10.89162085,126.26,126.2,8.69992569]
[1768953792509,8.47780255,126.29,126.21,8.69992569]
[1768953792704,10.89162085,126.28,126.21,8.69992569]
[1768953793314,8.47780255,126.27,126.21,8.69992569]
[1768953795412,2.4138183,126.26,126.21,8.69992569]
[1768953796215,11.28131898,126.26,126.2,7.1396]
[1768953796820,11.28131898,126.26,126.2,15.53047002]
[1768953799212,11.28131898,126.26,126.2,7.1396]
[1768953799417,7.1358,126.27,126.21,8.39087002]
[1768953799617,16.00330068,126.27,126.21,8.39087002]
[1768953800620,8.86750068,126.27,126.21,8.39087002]
[1768953801120,8.86750068,126.27,126.21,15.52987002]
[1768953801614,8.86750068,126.27,126.21,8.39087002]
[1768953801817,2.4138183,126.26,126.21,8.39087002]
[1768953802818,8.86750068,126.27,126.21,8.39087002]
[1768953803014,11.28131898,126.27,126.21,8.39087002]
[1768953803913,11.28131898,126.27,126.21,15.52997002]
[1768953807325,18.41711898,126.27,126.21,8.39087002]
[1768953807524,11.28131898,126.25,126.19,8.39087002]
[1768953807925,8.86750068,126.29,126.19,8.39087002]
[1768953808216,11.28131898,126.28,126.22,8.39087002]
[1768953808625,2.4138183,126.29,126.23,7.1378]
[1768953808818,2.4138183,126.29,126.23,15.52867002]
[1768953809224,2.4138183,126.29,126.24,7.1374]
[1768953810724,11.28131898,126.29,126.24,7.1374]
[1768953811724,11.28131898,126.29,126.24,15.52827002]
[1768953811925,11.28131898,126.31,126.25,8.39087002]
[1768953812829,8.86750068,126.3,126.25,8.39087002]
[1768953814220,8.86750068,126.32,126.26,8.39087002]
[1768953814522,11.27886494,126.32,126.26,8.39087002]
[1768953814729,8.86750068,126.31,126.26,8.39087002]
[1768953815316,8.86750068,126.31,126.24,8.39087002]
[1768953815727,8.86750068,126.29,126.22,8.39087002]
[1768953816830,8.86750068,126.29,126.23,15.52887002]
[1768953817031,8.86750068,126.29,126.24,8.39087002]
[1768953817332,2.41136426,126.3,126.24,8.39087002]
[1768953818922,2.41136426,126.3,126.25,8.39087002]
[1768953819331,2.41136426,126.32,126.25,8.39087002]
[1768953819923,2.41136426,126.32,126.27,15.52637002]
[1768953823029,8.86750068,126.33,126.27,15.52637002]
[1768953826034,307.32346426,126.34,126.27,15.52637002]
[1768953826035,10.63593549,126.32,126.27,8.39087002]
[1768953826233,8.22457123,126.31,126.25,7.1365]
[1768953826632,8.22457123,126.31,126.25,15.67284208]
[1768953828230,313.13647123,126.34,126.27,8.53634208]
[1768953828437,2.41136426,126.33,126.27,8.53634208]
[1768953829835,2.41136426,126.33,126.28,8.53634208]
[1768953831132,2.41136426,126.33,126.28,15.67144208]
[1768953831633,2.41136426,126.33,126.28,8.53634208]
[1768953832234,10.63593549,126.31,126.25,8.53634208]
[1768953832534,8.22457123,126.3,126.25,8.53634208]
[1768953832726,2.41136426,126.31,126.25,8.53634208]
[1768953832927,2.41136426,126.31,126.25,15.67314208]
[1768953834734,419.87705142,126.37,126.27,8.53634208]
[1768953834735,2.41136426,126.33,126.27,8.53634208]
[1768953835831,2.41136426,126.33,126.28,7.1351]
[1768953836034,10.63593549,126.33,126.27,8.53634208]
[1768953836736,10.63593549,126.33,126.27,15.67204208]
[1768953837330,2.41136426,126.33,126.28,8.53634208]
[1768953838031,2.41136426,126.33,126.28,15.67144208]
[1768953839037,8.22457123,126.34,126.28,15.67144208]
[1768953843941,9.54256426,126.35,126.29,8.53634208]
[1768953844838,17.76713549,126.35,126.29,8.53634208]
[1768953845042,15.35517123,126.37,126.3,8.53634208]
[1768953845243,2.41136426,126.36,126.3,8.53634208]
[1768953846147,8.22457123,126.35,126.3,8.53634208]
[1768953846650,2.41136426,126.36,126.31,8.53634208]
[1768953848137,10.63593549,126.36,126.31,8.53634208]
[1768953851849,2.41136426,126.36,126.31,8.53634208]
[1768953857041,17.44847746,126.36,126.29,7.73930479]
[1768953857750,17.44847746,126.36,126.3,7.73930479]
[1768953859163,7.9063132,126.35,126.3,7.73930479]
[1768953859361,7.9063132,126.35,126.29,14.87370479]
[1768953859549,7.9063132,126.35,126.3,14.87330479]
[1768953860958,9.54206426,126.36,126.31,7.73930479]
[1768953861658,17.44837746,126.36,126.31,7.73930479]
[1768953862057,7.9063132,126.35,126.3,14.87330479]
[1768953862249,7.9063132,126.35,126.3,7.73930479]
[1768953862853,7.1307,126.36,126.3,14.87330479]
[1768953864059,15.0370132,126.36,126.3,14.87330479]
[1768953864455,7.9063132,126.36,126.31,14.87270479]
[1768953864660,2.41136426,126.37,126.31,14.87270479]
[1768953865060,9.54146426,126.37,126.31,14.87270479]
[1768953865657,17.44777746,126.37,126.31,14.87270479]
[1768953866063,17.44777746,126.37,126.31,7.73930479]
[1768953866751,10.31767746,126.35,126.29,7.73930479]
[1768953866953,7.9063132,126.34,126.29,7.73930479]
[1768953867150,7.9063132,126.32,126.23,113.44236426]
[1768953867355,2.41136426,126.31,126.25,7.73930479]
[1768953867554,10.31767746,126.31,126.25,7.73930479]
[1768953867762,17.45127746,126.31,126.25,7.73930479]
[1768953868460,17.45127746,126.31,126.21,113.45676426]
[1768953868461,2.41136426,126.29,126.23,7.73930479]
[1768953868659,2.41136426,126.29,126.23,14.87720479]
[1768953869053,2.41136426,126.29,126.24,7.73930479]
[1768953871270,7.9063132,126.3,126.24,7.73930479]
[1768953871567,2.41136426,126.28,126.24,7.73930479]
[1768953871862,10.31767746,126.28,126.22,7.73930479]
[1768953872070,2.41136426,126.26,126.21,14.87800479]
[1768953872362,2.41136426,126.26,126.21,7.73930479]
[1768953872967,2.413493,126.25,126.21,7.73930479]
[1768953894378,2.413493,126.23,126.19,8.19006801]
[1768953897890,7.1368,126.26,126.19,8.19006801]
[1768953898187,2.413493,126.25,126.19,8.19006801]
[1768953898584,9.550393,126.25,126.19,8.19006801]
[1768953898890,17.80479182,126.25,126.19,8.19006801]
[1768953900789,8.25439882,126.3,126.23,8.19006801]
[1768953901390,8.25439882,126.3,126.24,8.19006801]
[1768953901590,2.413493,126.31,126.24,8.19006801]
[1768953901987,2.413493,126.31,126.25,15.32686801]
[1768953902187,2.413493,126.31,126.25,8.19006801]
[1768953902393,10.66789182,126.31,126.25,8.19006801]
[1768953902589,17.80159182,126.31,126.25,8.19006801]
[1768953902989,8.25439882,126.3,126.25,8.19006801]
[1768953903196,8.25439882,126.3,126.23,7.1375]
[1768953903197,10.66789182,126.29,126.23,15.32756801]
[1768953904698,2.413493,126.27,126.23,8.19006801]
[1768953905002,10.66789182,126.27,126.21,15.32886801]
[1768953905595,10.66789182,126.27,126.22,8.19006801]
[1768953905899,7.1352,126.28,126.22,8.19006801]
[1768953905900,9.548693,126.28,126.22,8.19006801]
[1768953906402,2.413493,126.28,126.23,8.19006801]
[1768953906895,8.25439882,126.29,126.24,8.19006801]
[1768953907200,2.413493,126.29,126.24,8.19006801]
[1768953907702,2.413493,126.29,126.24,15.32716801]
[1768953907900,17.80139182,126.31,126.24,15.32716801]
[1768953908100,17.80139182,126.31,126.25,8.19006801]
[1768953909690,7.1342,126.3,126.25,8.19006801]
[1768953909890,15.38859882,126.3,126.25,8.19006801]
[1768953910098,17.80209182,126.3,126.25,8.19006801]
[1768953910902,17.80209182,126.3,126.23,8.19006801]
[1768953911501,2.413493,126.3,126.24,8.19006801]
[1768953912500,10.66789182,126.3,126.24,8.19006801]
[1768953912800,7.1347,126.29,126.24,8.19006801]
[1768953912999,2.413493,126.28,126.22,8.19006801]
[1768953913393,10.66789182,126.28,126.22,8.19006801]
[1768953913607,7.1358,126.27,126.22,8.19006801]
[1768953914399,7.1363,126.26,126.22,8.19006801]
[1768953914703,9.549793,126.26,126.22,8.19006801]
[1768953916993,7.1363,126.26,126.22,8.19006801]
[1768953917395,9.549193,126.28,126.22,8.19006801]
[1768953917596,10.25809985,126.28,126.22,8.19006801]
[1768953918804,7.1358,126.27,126.22,8.19006801]
[1768953927912,14.98040685,126.27,126.22,8.19006801]
[1768953930009,2.413493,126.28,126.22,8.19006801]
[1768953930207,10.25809985,126.31,126.24,7.5036683]
[1768953930912,14.97870685,126.3,126.24,7.5036683]
[1768953931111,10.25809985,126.29,126.22,7.5036683]
[1768953932803,17.39279985,126.29,126.22,7.5036683]
[1768953934914,17.39135133,126.29,126.22,7.5036683]
[1768953936114,17.39135133,126.29,126.22,14.6421683]
[1768953936413,17.39135133,126.29,126.23,7.5036683]
[1768953937010,10.25665133,126.29,126.23,7.5036683]
[1768953937511,2.41204448,126.29,126.24,7.5036683]
[1768953937815,7.84460685,126.31,126.24,7.5036683]
[1768953937816,10.25665133,126.31,126.24,7.5036683]
[1768953938817,10.25665133,126.31,126.25,7.5036683]
[1768953941916,10.25665133,126.31,126.25,14.6404683]
[1768953942717,7.84460685,126.3,126.25,7.1368]
[1768953943016,10.25665133,126.29,126.23,7.1375]
[1768953943416,10.25665133,126.29,126.23,14.6411683]
[1768953944017,7.84460685,126.29,126.24,7.1374]
[1768953944212,7.84460685,126.29,126.24,14.6410683]
[1768953944411,7.84460685,126.29,126.24,7.5036683]
[1768953945321,10.25665133,126.29,126.24,7.5036683]
[1768953948223,17.39125133,126.29,126.24,7.5036683]
[1768953950124,2.41204448,126.29,126.25,7.3895241]
[1768953950424,2.41204448,126.31,126.25,7.3895241]
[1768953950622,9.67928473,126.31,126.25,7.3895241]
[1768953951723,16.81288473,126.31,126.25,7.3895241]
[1768953952419,7.26724025,126.29,126.23,7.3895241]
[1768953952626,9.67928473,126.29,126.23,7.3895241]
[1768953953728,9.67928473,126.29,126.24,7.3895241]
[1768953958127,7.26724025,126.29,126.24,7.3895241]
[1768953958323,9.67928473,126.29,126.24,7.3895241]
[1768953958527,2.41204448,126.29,126.24,7.3895241]
[1768953959724,2.41204448,126.29,126.25,7.3895241]
[1768953961328,7.26724025,126.28,126.23,14.5275241]
[1768953963829,7.26724025,126.28,126.23,7.3895241]
[1768953966938,2.41204448,126.27,126.21,7.3895241]
[1768953968939,2.41204448,126.27,126.22,7.3895241]
[1768953970035,2.41204448,126.25,126.22,7.3895241]
[1768953970235,9.67928473,126.27,126.22,7.3895241]
[1768953970630,2.41204448,126.25,126.2,7.3895241]
[1768953971434,7.26724025,126.22,126.17,7.1409]
[1768953971637,2.41204448,126.23,126.18,7.3895241]
[1768953972333,9.67928473,126.23,126.18,7.3895241]
[1768953973140,2.41204448,126.23,126.18,7.3895241]
[1768953973342,9.67928473,126.25,126.19,7.3895241]
[1768953973535,2.41204448,126.23,126.19,7.3895241]
[1768953974130,2.41204448,126.23,126.16,7.3895241]
[1768953974330,9.67928473,126.23,126.16,14.5310241]
[1768953974638,2.41204448,126.21,126.16,14.5310241]
[1768953975137,2.41204448,126.21,126.16,7.3895241]
[1768953976439,8.63917854,126.21,126.16,7.3895241]
[1768953976837,6.22713406,126.2,126.14,6.3828467]
[1768953977037,2.41204448,126.19,126.14,6.3828467]
[1768953984943,2.41204448,126.17,126.1,6.3828467]
[1768953985149,8.63917854,126.17,126.1,6.3828467]
[1768953986336,2.41204448,126.15,126.1,6.3828467]
[1768953986534,8.63917854,126.15,126.1,6.3828467]
[1768953986741,2.41204448,126.13,126.07,6.3828467]
[1768953988645,2.41204448,126.13,126.07,13.5298467]
[1768953988949,2.41204448,126.15,126.08,6.3828467]
[1768953989746,2.41204448,126.15,126.08,13.5292467]
[1768953990050,2.41204448,126.15,126.09,6.3828467]
[1768953992050,8.63917854,126.15,126.09,6.3828467]
[1768953992948,8.63917854,126.15,126.09,13.5287467]
[1768953993448,6.22713406,126.17,126.1,13.5280467]
[1768953993753,2.41204448,126.16,126.11,6.3828467]
[1768953994753,2.41204448,126.16,126.11,13.5275467]
[1768953994939,2.41680866,126.17,126.12,6.3828467]
[1768953995750,8.64394272,126.17,126.12,7.1441]
[1768953995949,8.64394272,126.17,126.1,6.3828467]
[1768953996149,6.22713406,126.16,126.1,6.3828467]
[1768953996351,2.41680866,126.15,126.1,6.3828467]
[1768953997254,8.64394272,126.15,126.08,13.5288467]
[1768953997460,2.41680866,126.13,126.08,13.5288467]
[1768953997948,2.41680866,126.14,126.1,6.3828467]
[1768953998649,6.22713406,126.17,126.1,6.3828467]
[1768953998650,6.22713406,126.17,126.11,6.3828467]
[1768953998856,2.41680866,126.16,126.11,6.3828467]
[1768953999355,2.41680866,126.18,126.13,6.3828467]
[1768954000053,2.41680866,126.18,126.13,13.5264467]
[1768954000353,2.41680866,126.18,126.13,6.3828467]
[1768954003349,6.22713406,126.17,126.11,6.3828467]
[1768954003744,2.41680866,126.16,126.11,6.3828467]
[1768954004857,6.22713406,126.17,126.11,13.5275467]
[1768954007160,6.22713406,126.17,126.11,6.3828467]
[1768954007457,6.16863068,126.15,126.09,5.96333498]
[1768954007952,111.0753,126.19,126.07,13.10993498]
[1768954007953,8.58543934,126.14,126.07,13.10993498]
[1768954008356,8.58543934,126.14,126.08,5.96333498]
[1768954008554,6.16863068,126.13,126.06,5.96333498]
[1768954008858,8.58543934,126.12,126.06,5.96333498]
[1768954013262,2.41680866,126.1,126.06,5.96333498]
[1768954013559,8.58543934,126.1,126.04,5.96333498]
[1768954016262,2.41680866,126.08,126.02,5.96333498]
[1768954017764,2.41680866,126.08,126.02,13.11313498]
[1768954018153,8.58543934,126.08,126.02,5.96333498]
[1768954019968,15.73203934,126.08,126.02,5.96333498]
[1768954020165,8.58543934,126.08,126.02,5.96333498]
[1768954021769,6.16863068,126.07,126.0,5.96333498]
[1768954021965,9.56340866,126.08,126.0,5.96333498]
[1768954022162,2.41680866,126.08,126.0,5.96333498]
[1768954022366,8.58543934,126.09,126.02,5.96333498]
[1768954022669,2.41680866,126.09,126.02,5.96333498]
[1768954022973,15.73143934,126.09,126.02,5.96333498]
[1768954023670,7.1465,126.08,126.02,5.96333498]
[1768954023964,8.58543934,126.09,126.02,5.96333498]
[1768954025967,6.16863068,126.11,126.03,5.96333498]
[1768954026272,2.41680866,126.11,126.04,5.96333498]